fUSD/lending_fUSD_20251123
["ID","MTS","AMOUNT","RATE_DAILY","PERIOD"]
[394777147,1763937047359,-1000.0,0.00040999,3]
[394777148,1763937047368,-1000.0,0.00040999,3]
[394777149,1763937047377,-163.82453997,0.00041,31]
[394777150,1763937047387,-691165.89678537,0.00041,2]
[394777151,1763937047535,-34662.94515768,0.00041,2]
[394777152,1763937047548,-8835.4052916,0.00041,2]
[394777153,1763937047567,-500.0,0.0004043,8]
[394777154,1763937047577,-99.82779978,0.00041,2]
[394777155,1763937047695,-500.0,0.0003906,8]
[394777156,1763937047707,-88.94,0.0003906,8]
[394777157,1763937047784,-500.0,0.00038529,8]
[394777158,1763937047794,-500.0,0.00038803,8]
[394777159,1763937047804,-411.06,0.0003906,8]
[394777160,1763937047815,-1000.0,0.0003906,8]
[394777161,1763937047824,-500.0,0.0003906,8]
[394777162,1763937047834,-500.0,0.0003906,8]
[394777163,1763937047848,-500.0,0.0003906,8]
[394777164,1763937047858,-500.0,0.0003906,8]
[394777165,1763937047868,-500.0,0.00039077,8]
[394777166,1763937047878,-500.0,0.00039334,8]
[394777167,1763937047887,-500.0,0.00039334,8]
[394777168,1763937047896,-1000.0,0.00039334,8]
[394777169,1763937047906,-500.0,0.00039334,8]
[394777170,1763937047916,-500.0,0.00039334,8]
[394777171,1763937047929,-500.0,0.00039334,8]
[394777172,1763937047939,-500.0,0.00039334,8]
[394777173,1763937047948,-500.0,0.00039608,8]
[394777174,1763937047959,-551.54509944,0.00039608,8]
[394777175,1763937047970,-1000.0,0.00039608,8]
[394777176,1763937047979,-500.0,0.00039608,8]
[394777177,1763937047988,-500.0,0.00039608,8]
[394777178,1763937047998,-500.0,0.00039608,8]
[394777179,1763937048016,-500.0,0.00039608,8]
[394777180,1763937048032,-500.0,0.00039882,8]
[394777181,1763937048042,-500.0,0.00039882,8]
[394777182,1763937048056,-500.0,0.00039882,8]
[394777183,1763937048066,-500.0,0.00039882,8]
[394777184,1763937048075,-500.0,0.00039882,8]
[394777185,1763937048087,-500.0,0.00040156,8]
[394777186,1763937048100,-500.0,0.00040156,8]
[394777187,1763937048109,-500.0,0.00040156,8]
[394777188,1763937048119,-439.72293986,0.0004043,8]
[394777189,1763937048136,-60.27706014,0.0004043,8]
[394777190,1763937048146,-2981.06017775,0.00041,2]
[394777191,1763937048220,-177.69120509,0.0003906,8]
[394777192,1763937048235,-322.30879491,0.0003906,8]
[394777193,1763937048244,-500.0,0.00039334,8]
[394777194,1763937048254,-564.65205134,0.00039351,8]
[394777195,1763937048267,-367.618,0.00039732,2]
[394777196,1763937048276,-262572.1811212,0.00041,2]
[394777219,1763938048979,240.89080885,0.00017,30]
[394777220,1763938157847,539.17,0.00013699,2]
[394777228,1763938231897,-500.0,0.00020187,2]
[394777229,1763938231908,-39.17,0.00020187,2]
[394777230,1763938231918,-195.0,0.00020564,2]
[394777231,1763938231927,-300.51454079,0.00020564,2]
[394777232,1763938231936,-250.0,0.00020564,2]
[394777233,1763938231945,-264.19239521,0.00020564,2]
[394777234,1763938231970,-2235.80760479,0.00020564,2]
[394777235,1763938231980,-303.0,0.00020941,2]
[394777236,1763938231989,-195.0,0.00021712,2]
[394777237,1763938231998,-250.0,0.00021712,2]
[394777238,1763938232007,-2500.0,0.00021712,2]
[394777239,1763938232017,-195.0,0.00022206,2]
[394777240,1763938232027,-300.0,0.00022206,2]
[394777241,1763938232036,-250.0,0.00022206,2]
[394777242,1763938232046,-2500.0,0.00022206,2]
[394777243,1763938232057,-207.26354482,0.00022206,2]
[394777244,1763938232066,-1200.0,0.00022472,2]
[394777245,1763938232075,-300.0,0.00022472,2]
[394777246,1763938232084,-455.33204985,0.00022473,2]
[394777247,1763938232094,-1485.0,0.00022487,2]
[394777248,1763938232103,-7734.33381917,0.00022488,2]
[394777249,1763938232123,-2265.65618083,0.00022488,2]
[394777250,1763938232131,-3584.82249049,0.00022488,2]
[394777251,1763938232142,-863.9,0.00022488,2]
[394777252,1763938232153,-1108.76250193,0.00022488,2]
[394777253,1763938232164,-1565.64063114,0.00022488,2]
[394777255,1763938232175,-2422.07999342,0.00022488,2]
[394777269,1763938237751,-884.70037941,0.00022488,2]
[394777270,1763938237872,-1000.0,0.00022488,2]
[394777271,1763938237883,-1104.3042,0.00022488,2]
[394777272,1763938237894,-1089.98364,0.00022488,2]
[394777274,1763938239874,-1241.61231828,0.00022488,2]
[394777276,1763938239886,-647.43916103,0.00022488,2]
[394777278,1763938239899,-42058.9446843,0.00022488,2]
[394777279,1763938239908,-299.99,0.00022488,7]
[394777280,1763938239917,-9999.99,0.00022488,2]
[394777281,1763938239927,-999.99,0.00022488,2]
[394777282,1763938239936,-500.0,0.000227,2]
[394777283,1763938239946,-426.78462315,0.00022993,2]
[394777284,1763938239958,-500.0,0.0002365,2]
[394777285,1763938239967,-500.0,0.0002365,2]
[394777286,1763938239976,-164.84037428,0.0002365,2]
[394777287,1763938239987,-500.0,0.0002365,2]
[394777288,1763938239996,-500.0,0.0002365,2]
[394777289,1763938240005,-1000.0,0.00024198,2]
[394777290,1763938240015,-1000.0,0.00024198,2]
[394777291,1763938240024,-256.71379944,0.00024198,2]
[394777292,1763938240033,-192.5,0.00024344,2]
[394777293,1763938240042,-150.99,0.00024344,2]
[394777294,1763938240051,-7413.74,0.00024344,2]
[394777295,1763938240060,-9225.85,0.00024344,5]
[394777296,1763938240069,-150.99,0.00024344,2]
[394777297,1763938240078,-420.0,0.00024407,2]
[394777298,1763938240088,-1680.0,0.00024521,2]
[394777299,1763938240097,-153.71,0.00024597,2]
[394777300,1763938240107,-1500.0,0.00024746,2]
[394777301,1763938240118,-1500.0,0.00024746,2]
[394777302,1763938240127,-151.0,0.00024785,2]
[394777303,1763938240136,-151.0,0.00024785,2]
[394777304,1763938240145,-151.0,0.00024785,2]
[394777305,1763938240154,-151.0,0.00024785,2]
[394777306,1763938240163,-151.0,0.00024785,2]
[394777307,1763938240175,-151.0,0.00024785,2]
[394777308,1763938240185,-151.0,0.00024785,2]
[394777309,1763938240194,-151.0,0.00024785,2]
[394777310,1763938240203,-151.0,0.00024785,2]
[394777311,1763938240212,-151.0,0.00024785,2]
[394777312,1763938240221,-151.0,0.00024785,2]
[394777313,1763938240230,-151.0,0.00024785,2]
[394777314,1763938240239,-285.24487916,0.00024785,2]
[394777315,1763938240249,-2000.0,0.00025294,2]
[394777316,1763938240258,-330.8232162,0.00025294,2]
[394777317,1763938240267,-2464.07027394,0.00025842,2]
[394777318,1763938240276,-251.0,0.0002651,2]
[394777319,1763938240286,-250.0,0.00026674,2]
[394777320,1763938240295,-539.17,0.00026676,2]
[394777321,1763938240304,-290.0,0.00026758,2]
[394777322,1763938240313,-708.27,0.0002886,2]
[394777324,1763938240323,-834.6,0.00030394,120]
[394777326,1763938240332,-194.29453246,0.00030423,2]
[394777328,1763938240342,-155.86,0.00030423,30]
[394777330,1763938240351,-500.0,0.00030975,5]
[394777332,1763938240360,-150.0,0.00031094,2]
[394777334,1763938240370,-2807.41,0.00031492,2]
[394777336,1763938240379,-250.0,0.00031656,2]
[394777338,1763938240388,-708.27,0.00032284,2]
[394777340,1763938240397,-539.17,0.00033165,2]
[394777342,1763938240408,-834.6,0.00034193,120]
[394777344,1763938240418,-173.521,0.0003434,38]
[394777346,1763938240428,-2443.995,0.0003434,38]
[394777348,1763938240437,-166.66,0.00034882,2]
[394777350,1763938240450,-368.0,0.00035,7]
[394777352,1763938240460,-500.0,0.00035005,2]
[394777354,1763938240469,-708.27,0.00035709,2]
[394777356,1763938240479,-4001.79,0.00036021,2]
[394777357,1763938240488,-150.0,0.00036888,7]
[394777358,1763938240496,-150.0,0.00036888,7]
[394777359,1763938240505,-185.14866466,0.00036888,7]
[394777360,1763938240514,-209.44855313,0.00036888,7]
[394777361,1763938240525,-150.0,0.00036888,7]
[394777362,1763938240534,-150.0,0.00036888,7]
[394777363,1763938240543,-150.0,0.00036888,7]
[394777364,1763938240552,-150.0,0.00036888,7]
[394777365,1763938240561,-245.97209231,0.00036888,7]
[394777366,1763938240569,-150.00000001,0.00036888,7]
[394777367,1763938240578,-150.0,0.00036888,7]
[394777368,1763938240587,-150.0,0.00036888,7]
[394777369,1763938240595,-150.0,0.00036888,7]
[394777370,1763938240604,-150.0,0.00036888,7]
[394777371,1763938240614,-4650.0,0.000374,5]
[394777372,1763938240623,-834.6,0.00037992,120]
[394777373,1763938240631,-500.0,0.00038,30]
[394777374,1763938240640,-1069.3997,0.00038306,2]
[394777375,1763938240649,-6034.5283,0.00038328,2]
[394777376,1763938240658,-457.12166874,0.00038328,2]
[394777377,1763938240666,-2500.0,0.00038329,2]
[394777378,1763938240675,-163.95654296,0.00038356,2]
[394777380,1763938240685,-150.0,0.00038356,5]
[394777382,1763938240694,-7329.8,0.00038418,2]
[394777384,1763938240704,-9142.91155175,0.00038428,2]
[394777386,1763938240714,-500.0,0.00038428,8]
[394777389,1763938240723,-542.65376037,0.00038428,8]
[394777390,1763938240732,-500.0,0.00038428,8]
[394777393,1763938240743,-500.0,0.00038428,8]
[394777394,1763938240752,-500.0,0.00038428,8]
[394777397,1763938240761,-500.0,0.00038428,8]
[394777398,1763938240771,-500.0,0.00038428,8]
[394777400,1763938240781,-500.0,0.00038428,8]
[394777402,1763938240790,-500.0,0.00038428,8]
[394777404,1763938240799,-500.0,0.00038428,8]
[394777406,1763938240808,-500.0,0.00038428,8]
[394777408,1763938240818,-500.0,0.00038428,8]
[394777410,1763938240827,-500.0,0.00038428,8]
[394777412,1763938240836,-500.0,0.00038428,8]
[394777414,1763938240845,-500.0,0.00038428,8]
[394777416,1763938240854,-500.0,0.00038428,8]
[394777419,1763938240863,-500.0,0.00038428,8]
[394777420,1763938240872,-439.36417627,0.00038428,8]
[394777422,1763938240881,-500.0,0.00038428,8]
[394777424,1763938240891,-500.0,0.00038428,8]
[394777427,1763938240900,-500.0,0.00038428,8]
[394777428,1763938240909,-500.0,0.00038428,8]
[394777430,1763938240918,-500.0,0.00038428,8]
[394777432,1763938240927,-500.0,0.00038428,8]
[394777434,1763938240936,-190.76179979,0.00038428,8]
[394777436,1763938240945,-500.0,0.00038428,8]
[394777439,1763938240955,-500.0,0.00038428,8]
[394777440,1763938240964,-500.0,0.00038428,8]
[394777442,1763938240973,-500.0,0.00038428,8]
[394777444,1763938240982,-350.02854577,0.00038428,8]
[394777446,1763938240991,-500.0,0.00038428,8]
[394777448,1763938241000,-500.0,0.00038428,8]
[394777450,1763938241009,-165.47878528,0.00038428,8]
[394777452,1763938241017,-500.0,0.00038428,8]
[394777454,1763938241027,-500.0,0.00038428,8]
[394777456,1763938241036,-500.0,0.00038428,8]
[394777459,1763938241046,-500.0,0.00038428,8]
[394777460,1763938241055,-500.0,0.00038428,8]
[394777462,1763938241065,-500.0,0.00038428,8]
[394777464,1763938241075,-500.0,0.00038428,8]
[394777467,1763938241084,-500.0,0.00038428,7]
[394777469,1763938241095,-500.0,0.00038428,7]
[394777470,1763938241104,-500.0,0.00038428,7]
[394777473,1763938241113,-500.0,0.00038428,8]
[394777474,1763938241122,-500.0,0.00038428,8]
[394777476,1763938241131,-500.0,0.00038428,8]
[394777478,1763938241141,-500.0,0.00038428,8]
[394777480,1763938241150,-500.0,0.00038428,8]
[394777483,1763938241159,-500.0,0.00038428,8]
[394777484,1763938241168,-500.0,0.00038428,8]
[394777487,1763938241177,-500.0,0.00038428,8]
[394777488,1763938241186,-624.87820617,0.00038428,8]
[394777490,1763938241195,-500.0,0.00038428,8]
[394777493,1763938241204,-500.0,0.00038428,8]
[394777494,1763938241213,-500.0,0.00038428,8]
[394777496,1763938241222,-500.0,0.00038428,8]
[394777498,1763938241231,-500.0,0.00038428,8]
[394777500,1763938241239,-500.0,0.00038428,8]
[394777502,1763938241248,-500.0,0.00038428,8]
[394777504,1763938241257,-500.0,0.00038428,8]
[394777506,1763938241266,-500.0,0.00038428,8]
[394777508,1763938241275,-500.0,0.00038428,8]
[394777510,1763938241284,-500.0,0.00038428,8]
[394777512,1763938241293,-500.0,0.00038428,8]
[394777514,1763938241302,-500.0,0.00038428,8]
[394777516,1763938241315,-500.0,0.00038428,8]
[394777518,1763938241326,-500.0,0.00038428,8]
[394777520,1763938241335,-500.0,0.00038428,8]
[394777522,1763938241344,-500.0,0.00038428,8]
[394777524,1763938241354,-500.0,0.00038428,8]
[394777526,1763938241363,-500.0,0.00038428,8]
[394777528,1763938241373,-500.0,0.00038428,8]
[394777530,1763938241383,-500.0,0.00038428,8]
[394777532,1763938241392,-500.0,0.00038428,8]
[394777535,1763938241401,-500.0,0.00038428,8]
[394777536,1763938241410,-323.86281496,0.00038428,8]
[394777539,1763938241420,-500.0,0.00038428,8]
[394777541,1763938241430,-500.0,0.00038428,8]
[394777543,1763938241440,-500.0,0.00038428,8]
[394777545,1763938241454,-500.0,0.00038428,8]
[394777547,1763938241462,-500.0,0.00038428,2]
[394777549,1763938241471,-500.0,0.00038428,2]
[394777551,1763938241480,-500.0,0.00038428,2]
[394777553,1763938241491,-500.0,0.00038428,8]
[394777555,1763938241499,-500.0,0.00038428,8]
[394777557,1763938241508,-574.93640247,0.00038428,8]
[394777559,1763938241517,-500.0,0.00038428,8]
[394777561,1763938241529,-500.0,0.00038428,8]
[394777563,1763938241538,-500.0,0.00038428,8]
[394777565,1763938241548,-500.0,0.00038428,8]
[394777567,1763938241556,-500.0,0.00038428,8]
[394777569,1763938241565,-500.0,0.00038428,8]
[394777571,1763938241574,-500.0,0.00038428,8]
[394777573,1763938241583,-500.0,0.00038428,8]
[394777575,1763938241593,-500.0,0.00038428,8]
[394777577,1763938241602,-500.0,0.00038428,8]
[394777579,1763938241611,-1359.6,0.00038428,8]
[394777580,1763938241620,-500.0,0.00038428,8]
[394777582,1763938241629,-500.0,0.00038428,8]
[394777584,1763938241638,-500.0,0.00038428,8]
[394777586,1763938241647,-500.0,0.00038428,8]
[394777588,1763938241656,-500.0,0.00038428,8]
[394777590,1763938241664,-500.0,0.00038428,8]
[394777592,1763938241674,-500.0,0.00038428,8]
[394777594,1763938241683,-500.0,0.00038428,8]
[394777596,1763938241692,-500.0,0.00038428,8]
[394777598,1763938241701,-576.71325968,0.00038428,8]
[394777600,1763938241710,-500.0,0.00038428,8]
[394777602,1763938241720,-500.0,0.00038428,8]
[394777604,1763938241729,-500.0,0.00038428,8]
[394777607,1763938241738,-500.0,0.00038428,8]
[394777608,1763938241747,-500.0,0.00038428,8]
[394777611,1763938241756,-500.0,0.00038428,8]
[394777612,1763938241767,-500.0,0.00038428,8]
[394777615,1763938241776,-500.0,0.00038428,8]
[394777617,1763938241786,-500.0,0.00038428,8]
[394777619,1763938241795,-500.0,0.00038428,8]
[394777621,1763938241804,-500.0,0.00038428,8]
[394777622,1763938241814,-500.0,0.00038428,8]
[394777624,1763938241823,-500.0,0.00038428,8]
[394777626,1763938241832,-500.0,0.00038428,8]
[394777628,1763938241843,-500.0,0.00038428,8]
[394777630,1763938241857,-500.0,0.00038428,8]
[394777632,1763938241866,-500.0,0.00038428,8]
[394777634,1763938241875,-500.0,0.00038428,8]
[394777636,1763938241886,-500.0,0.00038428,8]
[394777638,1763938241895,-500.0,0.00038428,8]
[394777640,1763938241904,-199.0,0.00038428,7]
[394777642,1763938241913,-500.0,0.00038428,8]
[394777644,1763938241923,-500.0,0.00038428,8]
[394777646,1763938241932,-1193.12,0.00038428,8]
[394777648,1763938241941,-500.0,0.00038428,2]
[394777650,1763938241951,-500.0,0.00038428,2]
[394777652,1763938241961,-500.0,0.00038428,8]
[394777654,1763938241970,-500.0,0.00038428,8]
[394777656,1763938241979,-500.0,0.00038428,8]
[394777658,1763938241988,-201.65818274,0.00038428,8]
[394777660,1763938241998,-500.0,0.00038428,8]
[394777662,1763938242007,-500.0,0.00038428,8]
[394777663,1763938242016,-500.0,0.00038428,8]
[394777664,1763938242025,-500.0,0.00038428,8]
[394777665,1763938242034,-500.0,0.00038428,8]
[394777666,1763938242043,-500.0,0.00038428,8]
[394777667,1763938242052,-500.0,0.00038428,8]
[394777668,1763938242061,-500.0,0.00038428,8]
[394777669,1763938242070,-500.0,0.00038428,8]
[394777670,1763938242079,-500.0,0.00038428,8]
[394777671,1763938242089,-500.0,0.00038428,8]
[394777672,1763938242099,-500.0,0.00038428,8]
[394777673,1763938242108,-500.0,0.00038428,8]
[394777674,1763938242117,-500.0,0.00038428,8]
[394777675,1763938242126,-500.0,0.00038428,8]
[394777676,1763938242135,-500.0,0.00038428,8]
[394777677,1763938242144,-500.0,0.00038428,8]
[394777678,1763938242153,-500.0,0.00038428,8]
[394777679,1763938242162,-500.0,0.00038428,8]
[394777680,1763938242171,-500.0,0.00038428,8]
[394777681,1763938242181,-500.0,0.00038428,8]
[394777682,1763938242190,-500.0,0.00038428,8]
[394777683,1763938242200,-500.0,0.00038428,8]
[394777684,1763938242210,-500.0,0.00038428,8]
[394777685,1763938242218,-500.0,0.00038428,8]
[394777686,1763938242227,-236.1908465,0.00038428,8]
[394777687,1763938242236,-500.0,0.00038428,8]
[394777688,1763938242245,-500.0,0.00038428,8]
[394777689,1763938242254,-500.0,0.00038428,8]
[394777690,1763938242264,-509.02,0.00038428,8]
[394777691,1763938242273,-500.0,0.00038428,8]
[394777692,1763938242282,-500.0,0.00038428,8]
[394777693,1763938242292,-500.0,0.00038428,8]
[394777694,1763938242301,-500.0,0.00038428,8]
[394777695,1763938242310,-500.0,0.00038428,8]
[394777696,1763938242320,-500.57621506,0.00038473,5]
[394777697,1763938242329,-498.95764127,0.00038473,5]
[394777698,1763938242339,-501.28182449,0.00038473,5]
[394777699,1763938242349,-501.64508704,0.00038473,5]
[394777700,1763938242358,-200.0,0.00038473,5]
[394777701,1763938242370,-500.0,0.00038473,5]
[394777702,1763938242380,-500.0,0.00038473,5]
[394777703,1763938242389,-500.0,0.00038473,5]
[394777704,1763938242398,-500.0,0.00038473,5]
[394777705,1763938242408,-500.0,0.00038473,5]
[394777706,1763938242418,-500.0,0.00038473,5]
[394777707,1763938242428,-500.0,0.00038473,5]
[394777708,1763938242438,-500.0,0.00038473,5]
[394777709,1763938242450,-162.97117022,0.00038517,15]
[394777710,1763938242459,-1000.0,0.00038527,3]
[394777711,1763938242468,-457.12166867,0.00038614,2]
[394777712,1763938242477,-744.0,0.00038617,20]
[394777713,1763938242487,-500.0,0.00038701,15]
[394777714,1763938242496,-500.0,0.00038701,15]
[394777715,1763938242505,-500.0,0.00038701,15]
[394777716,1763938242519,-500.0,0.00038701,15]
[394777717,1763938242531,-500.0,0.00038701,15]
[394777718,1763938242540,-268.65704351,0.00038701,15]
[394777719,1763938242549,-500.0,0.00038701,15]
[394777720,1763938242558,-500.0,0.00038701,15]
[394777721,1763938242567,-500.0,0.00038701,15]
[394777722,1763938242577,-500.0,0.00038701,15]
[394777723,1763938242586,-500.0,0.00038701,15]
[394777725,1763938242596,-500.0,0.00038701,15]
[394777726,1763938242605,-604.00124541,0.00038702,8]
[394777727,1763938242616,-500.0,0.00038702,8]
[394777728,1763938242625,-500.0,0.00038702,8]
[394777729,1763938242634,-251.91117321,0.00038702,8]
[394777730,1763938242644,-500.0,0.00038702,8]
[394777731,1763938242652,-500.0,0.00038702,8]
[394777732,1763938242662,-500.0,0.00038702,8]
[394777733,1763938242671,-500.0,0.00038702,8]
[394777734,1763938242680,-500.0,0.00038702,8]
[394777735,1763938242690,-500.0,0.00038702,8]
[394777736,1763938242699,-500.0,0.00038702,8]
[394777737,1763938242709,-500.0,0.00038702,8]
[394777738,1763938242718,-500.0,0.00038702,8]
[394777739,1763938242727,-500.0,0.00038702,8]
[394777740,1763938242736,-580.04220003,0.00038702,8]
[394777741,1763938242746,-500.0,0.00038702,8]
[394777742,1763938242755,-500.0,0.00038702,8]
[394777743,1763938242764,-500.0,0.00038702,8]
[394777744,1763938242775,-500.0,0.00038702,8]
[394777745,1763938242784,-500.0,0.00038702,8]
[394777746,1763938242794,-180.1955594,0.00038702,8]
[394777747,1763938242804,-500.0,0.00038702,8]
[394777748,1763938242814,-500.0,0.00038702,8]
[394777749,1763938242823,-500.0,0.00038702,8]
[394777750,1763938242832,-500.0,0.00038702,8]
[394777751,1763938242842,-500.0,0.00038702,8]
[394777752,1763938242851,-500.0,0.00038702,8]
[394777753,1763938242861,-500.0,0.00038702,8]
[394777754,1763938242871,-500.0,0.00038702,8]
[394777755,1763938242880,-500.0,0.00038702,8]
[394777756,1763938242889,-500.0,0.00038702,8]
[394777757,1763938242898,-500.0,0.00038702,8]
[394777758,1763938242907,-500.0,0.00038702,8]
[394777759,1763938242917,-500.0,0.00038702,8]
[394777760,1763938242926,-500.0,0.00038702,8]
[394777761,1763938242936,-500.0,0.00038702,8]
[394777762,1763938242945,-316.43558079,0.00038702,8]
[394777763,1763938242955,-500.0,0.00038702,8]
[394777764,1763938242964,-500.0,0.00038702,8]
[394777765,1763938242973,-500.0,0.00038702,8]
[394777766,1763938242983,-500.0,0.00038702,8]
[394777767,1763938242993,-585.99759078,0.00038702,8]
[394777768,1763938243002,-500.0,0.00038702,8]
[394777769,1763938243012,-500.0,0.00038702,8]
[394777770,1763938243022,-500.0,0.00038702,8]
[394777771,1763938243031,-500.0,0.00038702,8]
[394777772,1763938243040,-500.0,0.00038702,8]
[394777773,1763938243050,-500.0,0.00038702,8]
[394777774,1763938243059,-500.0,0.00038702,8]
[394777775,1763938243069,-500.0,0.00038702,8]
[394777776,1763938243078,-500.0,0.00038702,8]
[394777777,1763938243087,-500.0,0.00038702,8]
[394777778,1763938243096,-500.0,0.00038702,8]
[394777779,1763938243105,-500.0,0.00038702,8]
[394777780,1763938243115,-500.0,0.00038702,8]
[394777781,1763938243124,-500.0,0.00038702,8]
[394777782,1763938243134,-500.0,0.00038702,8]
[394777783,1763938243143,-500.0,0.00038702,8]
[394777784,1763938243152,-500.0,0.00038702,8]
[394777785,1763938243162,-500.0,0.00038702,8]
[394777786,1763938243171,-622.54282855,0.00038702,8]
[394777787,1763938243182,-500.0,0.00038702,8]
[394777788,1763938243191,-1359.6,0.00038702,8]
[394777789,1763938243200,-500.0,0.00038702,8]
[394777790,1763938243210,-500.0,0.00038702,8]
[394777791,1763938243220,-500.0,0.00038702,8]
[394777792,1763938243230,-500.0,0.00038702,8]
[394777793,1763938243239,-500.0,0.00038702,8]
[394777794,1763938243248,-535.28697698,0.00038702,8]
[394777795,1763938243257,-500.0,0.00038702,8]
[394777796,1763938243267,-154.23729549,0.00038702,8]
[394777797,1763938243275,-500.0,0.00038702,8]
[394777798,1763938243285,-500.0,0.00038702,8]
[394777799,1763938243293,-500.0,0.00038702,8]
[394777800,1763938243303,-500.0,0.00038702,8]
[394777801,1763938243312,-500.0,0.00038702,8]
[394777802,1763938243321,-294.28877392,0.00038702,8]
[394777803,1763938243331,-500.0,0.00038702,8]
[394777804,1763938243340,-500.0,0.00038702,8]
[394777805,1763938243349,-500.0,0.00038702,8]
[394777806,1763938243358,-500.0,0.00038702,8]
[394777807,1763938243367,-500.0,0.00038702,8]
[394777808,1763938243376,-1193.12,0.00038702,8]
[394777809,1763938243385,-500.0,0.00038702,8]
[394777810,1763938243395,-500.0,0.00038702,8]
[394777811,1763938243404,-500.0,0.00038702,8]
[394777812,1763938243414,-500.0,0.00038702,8]
[394777813,1763938243423,-500.0,0.00038702,8]
[394777814,1763938243432,-317.56630001,0.00038702,8]
[394777815,1763938243443,-500.0,0.00038702,8]
[394777816,1763938243457,-500.0,0.00038702,8]
[394777817,1763938243467,-248.46375342,0.00038702,8]
[394777819,1763938243476,-248.27198388,0.00038702,8]
[394777821,1763938243486,-500.0,0.00038702,8]
[394777824,1763938243498,-500.0,0.00038702,8]
[394777826,1763938243508,-500.0,0.00038702,8]
[394777828,1763938243518,-500.0,0.00038702,8]
[394777830,1763938243528,-500.0,0.00038702,8]
[394777832,1763938243537,-500.0,0.00038702,8]
[394777835,1763938243547,-500.0,0.00038702,8]
[394777838,1763938243556,-567.39345916,0.00038702,8]
[394777841,1763938243565,-500.0,0.00038702,8]
[394777844,1763938243575,-509.02,0.00038702,8]
[394777847,1763938243584,-500.0,0.00038702,8]
[394777849,1763938243593,-500.0,0.00038702,8]
[394777853,1763938243603,-457.12166867,0.000389,2]
[394777856,1763938243612,-500.0,0.00038976,8]
[394777859,1763938243622,-500.0,0.00038976,8]
[394777861,1763938243631,-500.0,0.00038976,8]
[394777863,1763938243641,-500.0,0.00038976,8]
[394777865,1763938243651,-500.0,0.00038976,8]
[394777867,1763938243661,-548.05228509,0.00038976,8]
[394777868,1763938243671,-244.55170388,0.00038976,8]
[394777869,1763938243680,-500.0,0.00038976,8]
[394777870,1763938243690,-500.0,0.00038976,8]
[394777871,1763938243701,-500.0,0.00038976,8]
[394777872,1763938243711,-500.0,0.00038976,8]
[394777873,1763938243720,-500.0,0.00038976,8]
[394777874,1763938243731,-500.0,0.00038976,8]
[394777875,1763938243741,-500.0,0.00038976,8]
[394777876,1763938243750,-500.0,0.00038976,8]
[394777877,1763938243890,-500.0,0.00038976,8]
[394777878,1763938243918,-500.0,0.00038976,8]
[394777879,1763938243928,-500.0,0.00038976,8]
[394777880,1763938243938,-500.0,0.00038976,8]
[394777881,1763938243948,-500.0,0.00038976,8]
[394777882,1763938243958,-500.0,0.00038976,8]